[Event "Late-Titled-Tuesday-Blitz-October-24-2023"]
[Site "Chess.com"]
[Date "2023.10.24"]
[Round "10"]
[White "victormago"]
[Black "falzehope0"]
[Result "1-0"]
[WhiteElo "2428"]
[BlackElo "2317"]
[TimeControl "180+1"]
[EndTime "15:55:40 PDT"]
[Termination "victormago won by resignation"]

1. d4 {[%clk 0:02:56.6]} 1... e6 {[%clk 0:02:58.3]} 2. c4 {[%clk 0:02:56.6]}
2... d5 {[%clk 0:02:57.8]} 3. Nc3 {[%clk 0:02:56.3]} 3... f5 {[%clk 0:02:57.3]}
4. Nf3 {[%clk 0:02:40.5]} 4... c6 {[%clk 0:02:56.1]} 5. Bg5 {[%clk 0:02:37.8]}
5... Be7 {[%clk 0:02:50.6]} 6. Bxe7 {[%clk 0:02:37.6]} 6... Nxe7 {[%clk
0:02:51.4]} 7. e3 {[%clk 0:02:37.6]} 7... Ng6 {[%clk 0:02:51.1]} 8. Bd3 {[%clk
0:02:34.6]} 8... O-O {[%clk 0:02:50.7]} 9. Qc2 {[%clk 0:02:34.1]} 9... Na6
{[%clk 0:02:50.1]} 10. a3 {[%clk 0:02:33.3]} 10... Nc7 {[%clk 0:02:50.1]} 11.
O-O {[%clk 0:02:32.7]} 11... Nh4 {[%clk 0:02:47.1]} 12. Nxh4 {[%clk 0:02:31.3]}
12... Qxh4 {[%clk 0:02:46.3]} 13. f4 {[%clk 0:02:31.4]} 13... g5 {[%clk
0:02:44.4]} 14. g3 {[%clk 0:02:16.8]} 14... Qh6 {[%clk 0:02:43.1]} 15. fxg5
{[%clk 0:02:10.9]} 15... Qxg5 {[%clk 0:02:42.4]} 16. Rf4 {[%clk 0:02:11.5]}
16... Ne8 {[%clk 0:02:39.7]} 17. Raf1 {[%clk 0:02:02.8]} 17... Ng7 {[%clk
0:02:38]} 18. Qf2 {[%clk 0:01:55.7]} 18... Bd7 {[%clk 0:02:36.2]} 19. Ne2 {[%clk
0:01:51]} 19... Be8 {[%clk 0:02:33]} 20. Rh4 {[%clk 0:01:50]} 20... h5 {[%clk
0:02:23]} 21. Nf4 {[%clk 0:01:49]} 21... Bf7 {[%clk 0:02:21.8]} 22. Be2 {[%clk
0:01:48.1]} 22... Rfd8 {[%clk 0:02:18.3]} 23. Nd3 {[%clk 0:01:42.6]} 23... b6
{[%clk 0:02:05.4]} 24. Ne5 {[%clk 0:01:41.9]} 24... Rac8 {[%clk 0:02:02.2]} 25.
c5 {[%clk 0:00:56.1]} 25... Be8 {[%clk 0:02:00.8]} 26. b4 {[%clk 0:00:55.3]}
26... Rb8 {[%clk 0:01:58.2]} 27. Rc1 {[%clk 0:00:52.2]} 27... b5 {[%clk
0:01:56.6]} 28. Qf4 {[%clk 0:00:51.2]} 28... Qf6 {[%clk 0:01:51]} 29. Rf1 {[%clk
0:00:42.8]} 29... Ra8 {[%clk 0:01:47.6]} 30. Rh3 {[%clk 0:00:22.9]} 30... a5
{[%clk 0:01:40.3]} 31. g4 {[%clk 0:00:22]} 31... hxg4 {[%clk 0:01:37.1]} 32.
Bxg4 {[%clk 0:00:19.5]} 32... Ra7 {[%clk 0:01:20.8]} 33. Rh6 {[%clk 0:00:17.4]}
33... Qe7 {[%clk 0:01:16.1]} 34. Bd1 {[%clk 0:00:15.4]} 34... axb4 {[%clk
0:01:14.2]} 35. axb4 {[%clk 0:00:15.1]} 35... Ra2 {[%clk 0:01:13]} 36. Kh1
{[%clk 0:00:14.5]} 36... Ra1 {[%clk 0:01:05.7]} 37. Rg1 {[%clk 0:00:14.3]} 37...
Rda8 {[%clk 0:00:59.7]} 38. Rh3 {[%clk 0:00:13.4]} 38... R8a7 {[%clk 0:00:55.8]}
39. Qh6 {[%clk 0:00:12.7]} 39... Bh5 {[%clk 0:00:44.2]} 40. Qxh5 {[%clk
0:00:09.6]} 40... Qh4 {[%clk 0:00:37.9]} 41. Qxh4 {[%clk 0:00:09.1]} 41... Kf8
{[%clk 0:00:37.2]} 42. Qh8+ {[%clk 0:00:08.9]} 42... Ke7 {[%clk 0:00:37.3]} 43.
Qxg7+ {[%clk 0:00:08.2]} 1-0

[Event "Late-Titled-Tuesday-Blitz-October-24-2023"]
[Site "Chess.com"]
[Date "2023.10.24"]
[Round "10"]
[White "Andrei_Skvortsov"]
[Black "SpeedofLight0"]
[Result "1-0"]
[WhiteElo "2689"]
[BlackElo "2955"]
[TimeControl "180+1"]
[EndTime "15:55:43 PDT"]
[Termination "Andrei_Skvortsov won by checkmate"]

1. e4 {[%clk 0:03:00.9]} 1... c5 {[%clk 0:02:54.9]} 2. d4 {[%clk 0:03:01.1]}
2... cxd4 {[%clk 0:02:54.1]} 3. Qxd4 {[%clk 0:03:02]} 3... Nc6 {[%clk
0:02:53.8]} 4. Qd3 {[%clk 0:03:02.6]} 4... g6 {[%clk 0:02:53.1]} 5. Nc3 {[%clk
0:03:03]} 5... Bg7 {[%clk 0:02:53.9]} 6. Nf3 {[%clk 0:03:03.6]} 6... d6 {[%clk
0:02:54.2]} 7. Be2 {[%clk 0:03:04.2]} 7... Nf6 {[%clk 0:02:54.5]} 8. O-O {[%clk
0:03:04.9]} 8... O-O {[%clk 0:02:55.3]} 9. Nd5 {[%clk 0:03:05.3]} 9... Nd7
{[%clk 0:02:54.3]} 10. c3 {[%clk 0:03:05.3]} 10... b6 {[%clk 0:02:53.6]} 11. Rd1
{[%clk 0:02:57.6]} 11... Bb7 {[%clk 0:02:53.4]} 12. Bg5 {[%clk 0:02:56.8]} 12...
h6 {[%clk 0:02:52.4]} 13. Bh4 {[%clk 0:02:56.7]} 13... g5 {[%clk 0:02:51.9]} 14.
Bg3 {[%clk 0:02:56.7]} 14... Nc5 {[%clk 0:02:51.2]} 15. Qc2 {[%clk 0:02:51.5]}
15... a5 {[%clk 0:02:50]} 16. Rab1 {[%clk 0:02:34.3]} 16... a4 {[%clk 0:02:49]}
17. b4 {[%clk 0:02:32.3]} 17... axb3 {[%clk 0:02:49.2]} 18. axb3 {[%clk
0:02:32.8]} 18... Ra3 {[%clk 0:02:30.4]} 19. Ne3 {[%clk 0:02:16.6]} 19... Na5
{[%clk 0:02:25.9]} 20. Nd2 {[%clk 0:02:12.2]} 20... Qa8 {[%clk 0:02:20.5]} 21.
Nd5 {[%clk 0:02:04.3]} 21... Bxd5 {[%clk 0:02:13.9]} 22. exd5 {[%clk 0:02:03.2]}
22... Qxd5 {[%clk 0:02:14.8]} 23. Nc4 {[%clk 0:02:02.5]} 23... Qe4 {[%clk
0:02:02.2]} 24. Nxa3 {[%clk 0:01:59.1]} 24... Qxc2 {[%clk 0:01:56.6]} 25. Nxc2
{[%clk 0:02:00]} 25... Naxb3 {[%clk 0:01:56]} 26. Nd4 {[%clk 0:01:52.6]} 26...
Nxd4 {[%clk 0:01:55]} 27. cxd4 {[%clk 0:01:53.5]} 27... Ne4 {[%clk 0:01:55.9]}
28. Rxb6 {[%clk 0:01:45.7]} 28... Nc3 {[%clk 0:01:56]} 29. Re1 {[%clk 0:01:35]}
29... Bxd4 {[%clk 0:01:55.6]} 30. Rb7 {[%clk 0:01:31.3]} 30... Bf6 {[%clk
0:01:54]} 31. h4 {[%clk 0:01:28.5]} 31... gxh4 {[%clk 0:01:51.8]} 32. Bf4 {[%clk
0:01:28]} 32... Kg7 {[%clk 0:01:51.9]} 33. Bf3 {[%clk 0:01:26.5]} 33... Rc8
{[%clk 0:01:50]} 34. Kh2 {[%clk 0:01:23]} 34... Rc4 {[%clk 0:01:49.3]} 35. Bd2
{[%clk 0:01:19.6]} 35... Na4 {[%clk 0:01:48.8]} 36. Rbxe7 {[%clk 0:01:11.4]}
36... Bxe7 {[%clk 0:01:48.3]} 37. Rxe7 {[%clk 0:01:11.8]} 37... Kg6 {[%clk
0:01:44.4]} 38. Be3 {[%clk 0:01:02.6]} 38... Nc3 {[%clk 0:01:41.6]} 39. Rd7
{[%clk 0:00:58.4]} 39... d5 {[%clk 0:01:33.7]} 40. Rd6+ {[%clk 0:00:58.3]} 40...
f6 {[%clk 0:01:33.8]} 41. Bxd5 {[%clk 0:00:57.6]} 41... Ra4 {[%clk 0:01:25.3]}
42. Bf3 {[%clk 0:00:55.5]} 42... Rc4 {[%clk 0:01:20.2]} 43. Rd4 {[%clk
0:00:54.6]} 43... Rc7 {[%clk 0:01:18.4]} 44. Rg4+ {[%clk 0:00:52.7]} 44... Kf5
{[%clk 0:01:18]} 45. Rxh4 {[%clk 0:00:52.4]} 45... Ke6 {[%clk 0:01:17.1]} 46.
Rxh6 {[%clk 0:00:52.2]} 46... Na4 {[%clk 0:01:17.1]} 47. Rh4 {[%clk 0:00:50.7]}
47... Nb2 {[%clk 0:01:16.8]} 48. Re4+ {[%clk 0:00:49.2]} 48... Kf5 {[%clk
0:01:16.9]} 49. Rf4+ {[%clk 0:00:48.9]} 49... Kg6 {[%clk 0:01:17.4]} 50. Rd4
{[%clk 0:00:49.3]} 50... Nc4 {[%clk 0:01:17.1]} 51. Bf4 {[%clk 0:00:49.7]} 51...
Rc8 {[%clk 0:01:17.2]} 52. Be2 {[%clk 0:00:47.3]} 52... Nb6 {[%clk 0:01:17]} 53.
Bd3+ {[%clk 0:00:46.6]} 53... Kf7 {[%clk 0:01:16.2]} 54. Rb4 {[%clk 0:00:44.4]}
54... Nd5 {[%clk 0:01:16.2]} 55. Bc4 {[%clk 0:00:42.5]} 55... Rc5 {[%clk
0:01:15.2]} 56. Bxd5+ {[%clk 0:00:37.7]} 56... Rxd5 {[%clk 0:01:16.1]} 57. Be3
{[%clk 0:00:37.9]} 57... Kg6 {[%clk 0:01:16]} 58. Kg3 {[%clk 0:00:38.1]} 58...
Rh5 {[%clk 0:01:16]} 59. Kf3 {[%clk 0:00:38.3]} 59... Rf5+ {[%clk 0:01:16.1]}
60. Rf4 {[%clk 0:00:38.8]} 60... Ra5 {[%clk 0:01:17]} 61. g4 {[%clk 0:00:36.9]}
61... f5 {[%clk 0:01:17.7]} 62. gxf5+ {[%clk 0:00:36.6]} 62... Kf6 {[%clk
0:01:17.5]} 63. Bd4+ {[%clk 0:00:36.7]} 63... Kg5 {[%clk 0:01:17.9]} 64. f6
{[%clk 0:00:35.5]} 64... Ra3+ {[%clk 0:01:18.4]} 65. Be3 {[%clk 0:00:35.8]}
65... Kh5 {[%clk 0:01:18.4]} 66. f7 {[%clk 0:00:35.4]} 66... Ra6 {[%clk
0:01:18]} 67. f8=Q {[%clk 0:00:30.6]} 67... Rf6 {[%clk 0:01:18.6]} 68. Qh8+
{[%clk 0:00:28.9]} 68... Rh6 {[%clk 0:01:17.4]} 69. Qxh6+ {[%clk 0:00:28.5]}
69... Kxh6 {[%clk 0:01:17.8]} 70. Rg4+ {[%clk 0:00:28.9]} 70... Kh5 {[%clk
0:01:18.5]} 71. Kf4 {[%clk 0:00:29.3]} 71... Kh6 {[%clk 0:01:18.9]} 72. Bd2
{[%clk 0:00:27.4]} 72... Kh5 {[%clk 0:01:19.8]} 73. Be1 {[%clk 0:00:27.9]} 73...
Kh6 {[%clk 0:01:20.5]} 74. Kf5 {[%clk 0:00:28.1]} 74... Kh5 {[%clk 0:01:21.4]}
75. Re4 {[%clk 0:00:27.4]} 75... Kh6 {[%clk 0:01:22.3]} 76. Re7 {[%clk
0:00:27.9]} 76... Kh5 {[%clk 0:01:23.2]} 77. Rh7# {[%clk 0:00:28.3]} 1-0

[Event "Late-Titled-Tuesday-Blitz-October-24-2023"]
[Site "Chess.com"]
[Date "2023.10.24"]
[Round "10"]
[White "Miguelitro69"]
[Black "Maluco_do_Natal_00"]
[Result "1-0"]
[WhiteElo "2272"]
[BlackElo "2032"]
[TimeControl "180+1"]
[EndTime "15:55:44 PDT"]
[Termination "Miguelitro69 won on time"]

1. e4 {[%clk 0:03:00.9]} 1... c5 {[%clk 0:02:53.7]} 2. Nf3 {[%clk 0:03:00.8]}
2... Nc6 {[%clk 0:02:53.5]} 3. d4 {[%clk 0:03:01]} 3... cxd4 {[%clk 0:02:54.4]}
4. Nxd4 {[%clk 0:03:01.2]} 4... Nf6 {[%clk 0:02:54.4]} 5. Nc3 {[%clk 0:03:01.4]}
5... e5 {[%clk 0:02:53.9]} 6. Ndb5 {[%clk 0:03:00.6]} 6... d6 {[%clk 0:02:54.4]}
7. Bg5 {[%clk 0:02:58.5]} 7... a6 {[%clk 0:02:54.7]} 8. Na3 {[%clk 0:02:58.4]}
8... b5 {[%clk 0:02:54.2]} 9. Nd5 {[%clk 0:02:58.5]} 9... Be7 {[%clk 0:02:54]}
10. Bxf6 {[%clk 0:02:58.5]} 10... Bxf6 {[%clk 0:02:54.4]} 11. Be2 {[%clk
0:02:59.2]} 11... O-O {[%clk 0:02:54.1]} 12. O-O {[%clk 0:02:59.1]} 12... Bg5
{[%clk 0:02:47]} 13. g3 {[%clk 0:02:58.2]} 13... Bh3 {[%clk 0:02:41]} 14. Re1
{[%clk 0:02:57.5]} 14... Be6 {[%clk 0:02:41]} 15. c3 {[%clk 0:02:56.7]} 15...
Ne7 {[%clk 0:02:38.5]} 16. Nc2 {[%clk 0:02:43.7]} 16... Nxd5 {[%clk 0:02:36.6]}
17. exd5 {[%clk 0:02:44.6]} 17... Bd7 {[%clk 0:02:26.5]} 18. h4 {[%clk
0:02:32.5]} 18... Bh6 {[%clk 0:02:23.2]} 19. Qd3 {[%clk 0:02:30.2]} 19... f5
{[%clk 0:02:20]} 20. Nb4 {[%clk 0:02:24.4]} 20... f4 {[%clk 0:02:02.6]} 21. Nc6
{[%clk 0:02:13]} 21... Qb6 {[%clk 0:01:54.8]} 22. g4 {[%clk 0:01:54.6]} 22... g6
{[%clk 0:01:43.7]} 23. h5 {[%clk 0:01:46.6]} 23... Kg7 {[%clk 0:01:27.5]} 24.
Kg2 {[%clk 0:01:28]} 24... Rae8 {[%clk 0:01:17.9]} 25. Bf3 {[%clk 0:01:24.5]}
25... Bg5 {[%clk 0:01:05.4]} 26. Rh1 {[%clk 0:01:17.4]} 26... Bxc6 {[%clk
0:00:56.3]} 27. dxc6 {[%clk 0:01:14.9]} 27... e4 {[%clk 0:00:40.7]} 28. Bxe4
{[%clk 0:01:12.6]} 28... f3+ {[%clk 0:00:31.7]} 29. Bxf3 {[%clk 0:01:01]} 29...
Rf4 {[%clk 0:00:20.6]} 30. hxg6 {[%clk 0:00:53.7]} 30... hxg6 {[%clk 0:00:16.4]}
31. Rh3 {[%clk 0:00:30.2]} 31... Ref8 {[%clk 0:00:12.8]} 32. Qxd6 {[%clk
0:00:27.3]} 32... R4f6 {[%clk 0:00:06]} 33. Qd4 {[%clk 0:00:24.1]} 33... Qc7
{[%clk 0:00:04.6]} 34. Rah1 {[%clk 0:00:20.6]} 1-0

[Event "Late-Titled-Tuesday-Blitz-October-24-2023"]
[Site "Chess.com"]
[Date "2023.10.24"]
[Round "10"]
[White "Mykola-Bortnyk"]
[Black "NateSolon"]
[Result "0-1"]
[WhiteElo "2923"]
[BlackElo "2682"]
[TimeControl "180+1"]
[EndTime "15:55:52 PDT"]
[Termination "NateSolon won by resignation"]

1. e4 {[%clk 0:03:00.9]} 1... c5 {[%clk 0:03:00]} 2. c3 {[%clk 0:03:01.4]} 2...
Nf6 {[%clk 0:02:59.9]} 3. e5 {[%clk 0:03:02.1]} 3... Nd5 {[%clk 0:03:00.5]} 4.
Bc4 {[%clk 0:03:03]} 4... Nb6 {[%clk 0:02:57]} 5. Bb3 {[%clk 0:03:03.3]} 5... d5
{[%clk 0:02:52.7]} 6. d4 {[%clk 0:03:01.3]} 6... cxd4 {[%clk 0:02:41.5]} 7. cxd4
{[%clk 0:03:02.2]} 7... Nc6 {[%clk 0:02:41.6]} 8. Nc3 {[%clk 0:03:00.4]} 8...
Bf5 {[%clk 0:02:40.7]} 9. Nge2 {[%clk 0:03:00.7]} 9... h6 {[%clk 0:02:33.1]} 10.
Ng3 {[%clk 0:02:56.7]} 10... Bg6 {[%clk 0:02:18.9]} 11. e6 {[%clk 0:02:54]}
11... fxe6 {[%clk 0:02:18.5]} 12. Qg4 {[%clk 0:02:53.4]} 12... Bf7 {[%clk
0:02:17.6]} 13. h4 {[%clk 0:02:49.1]} 13... e5 {[%clk 0:02:12.5]} 14. dxe5
{[%clk 0:02:42.2]} 14... Nxe5 {[%clk 0:02:13.4]} 15. Qe2 {[%clk 0:02:42.3]}
15... Nec4 {[%clk 0:01:59.5]} 16. O-O {[%clk 0:02:36.7]} 16... e6 {[%clk
0:01:57.6]} 17. Rd1 {[%clk 0:02:28.7]} 17... Be7 {[%clk 0:01:43.3]} 18. a4
{[%clk 0:02:15.6]} 18... a5 {[%clk 0:01:38.7]} 19. Nxd5 {[%clk 0:02:01.8]} 19...
exd5 {[%clk 0:01:35.3]} 20. Nf5 {[%clk 0:02:01.9]} 20... Kf8 {[%clk 0:01:24.3]}
21. Bxc4 {[%clk 0:01:55.3]} 21... Nxc4 {[%clk 0:01:24.3]} 22. b3 {[%clk
0:01:56.1]} 22... Nd6 {[%clk 0:01:20.6]} 23. Nd4 {[%clk 0:01:43.1]} 23... Bf6
{[%clk 0:01:11.3]} 24. Ba3 {[%clk 0:01:43.5]} 24... Kg8 {[%clk 0:01:11.4]} 25.
Rac1 {[%clk 0:01:39.1]} 25... Ne4 {[%clk 0:01:08.7]} 26. Nf5 {[%clk 0:01:33.7]}
26... Qb6 {[%clk 0:00:59.1]} 27. Rd3 {[%clk 0:01:25.9]} 27... Re8 {[%clk
0:00:56.2]} 28. Re3 {[%clk 0:01:18.8]} 28... Bg6 {[%clk 0:00:51.2]} 29. Qg4
{[%clk 0:01:11.5]} 29... Bxf5 {[%clk 0:00:45.9]} 30. Qxf5 {[%clk 0:01:12.4]}
30... Qe6 {[%clk 0:00:41.1]} 31. Qxe6+ {[%clk 0:00:49.8]} 31... Rxe6 {[%clk
0:00:40.9]} 32. Rd1 {[%clk 0:00:50.7]} 32... d4 {[%clk 0:00:37.1]} 33. Ree1
{[%clk 0:00:45.9]} 33... Kf7 {[%clk 0:00:36.8]} 34. Bb2 {[%clk 0:00:38.6]} 34...
Rd8 {[%clk 0:00:34.9]} 35. Rc1 {[%clk 0:00:30.9]} 35... Bxh4 {[%clk 0:00:28.9]}
36. Rc7+ {[%clk 0:00:29.5]} 36... Kg6 {[%clk 0:00:28.4]} 37. g3 {[%clk
0:00:28.1]} 37... Bf6 {[%clk 0:00:26.6]} 38. f3 {[%clk 0:00:17.4]} 38... Ng5
{[%clk 0:00:21.3]} 39. Rxe6 {[%clk 0:00:11.8]} 39... Nxe6 {[%clk 0:00:22.2]} 40.
Rxb7 {[%clk 0:00:12.6]} 40... d3 {[%clk 0:00:22]} 41. Bc1 {[%clk 0:00:13.4]}
41... d2 {[%clk 0:00:22.1]} 42. Bxd2 {[%clk 0:00:14]} 42... Rxd2 {[%clk
0:00:22.5]} 43. Rb5 {[%clk 0:00:14.9]} 43... Nd4 {[%clk 0:00:22.2]} 44. Rxa5
{[%clk 0:00:14.9]} 44... Nxf3+ {[%clk 0:00:22.4]} 45. Kf1 {[%clk 0:00:15.8]}
45... Bd4 {[%clk 0:00:22.1]} 0-1

[Event "Late-Titled-Tuesday-Blitz-October-24-2023"]
[Site "Chess.com"]
[Date "2023.10.24"]
[Round "10"]
[White "GiorgianBarbosa"]
[Black "jcmesafischer"]
[Result "1-0"]
[WhiteElo "2439"]
[BlackElo "2324"]
[TimeControl "180+1"]
[EndTime "15:55:57 PDT"]
[Termination "GiorgianBarbosa won on time"]

1. e4 {[%clk 0:03:00.9]} 1... c5 {[%clk 0:02:48.7]} 2. Nf3 {[%clk 0:02:59.7]}
2... d6 {[%clk 0:02:47.2]} 3. d4 {[%clk 0:02:59.6]} 3... cxd4 {[%clk 0:02:48.1]}
4. Nxd4 {[%clk 0:03:00.1]} 4... Nf6 {[%clk 0:02:47.3]} 5. Nc3 {[%clk 0:03:00.5]}
5... a6 {[%clk 0:02:47.1]} 6. Bg5 {[%clk 0:02:54.2]} 6... e6 {[%clk 0:02:47]} 7.
f4 {[%clk 0:02:51.9]} 7... Be7 {[%clk 0:02:46.9]} 8. Qf3 {[%clk 0:02:51.8]} 8...
Qc7 {[%clk 0:02:47]} 9. O-O-O {[%clk 0:02:51.5]} 9... Nbd7 {[%clk 0:02:46.7]}
10. g4 {[%clk 0:02:51.2]} 10... b5 {[%clk 0:02:46.6]} 11. h4 {[%clk 0:02:48.6]}
11... b4 {[%clk 0:02:44.9]} 12. Nd5 {[%clk 0:02:41.2]} 12... exd5 {[%clk
0:02:39.6]} 13. exd5 {[%clk 0:02:39.7]} 13... Bb7 {[%clk 0:01:56.5]} 14. Nf5
{[%clk 0:02:37.6]} 14... Rc8 {[%clk 0:01:40]} 15. Rh2 {[%clk 0:02:35.6]} 15...
h6 {[%clk 0:01:32.3]} 16. Qe3 {[%clk 0:02:07.6]} 16... Nb6 {[%clk 0:00:41.7]}
17. Bxf6 {[%clk 0:01:44.2]} 17... gxf6 {[%clk 0:00:35.7]} 18. Nxe7 {[%clk
0:01:39.6]} 18... Qxe7 {[%clk 0:00:23.8]} 19. Qxb6 {[%clk 0:01:38]} 19... Kf8
{[%clk 0:00:19.9]} 20. Qxb4 {[%clk 0:01:30.8]} 20... Kg7 {[%clk 0:00:12.5]} 21.
Bd3 {[%clk 0:01:27.5]} 21... Qe3+ {[%clk 0:00:09.2]} 22. Kb1 {[%clk 0:01:03.9]}
22... Bxd5 {[%clk 0:00:08.9]} 23. Re2 {[%clk 0:00:55.3]} 23... Qa7 {[%clk
0:00:05.1]} 24. g5 {[%clk 0:00:46.7]} 24... Qc5 {[%clk 0:00:01.8]} 25. gxf6+
{[%clk 0:00:41.7]} 25... Kxf6 {[%clk 0:00:02.7]} 26. Qd2 {[%clk 0:00:20.6]}
26... Rb8 {[%clk 0:00:02.1]} 27. b3 {[%clk 0:00:18.5]} 27... a5 {[%clk
0:00:01.5]} 28. Be4 {[%clk 0:00:16.6]} 28... Be6 {[%clk 0:00:01.5]} 29. Qxd6
{[%clk 0:00:15.2]} 29... Qxd6 {[%clk 0:00:01.9]} 30. Rxd6 {[%clk 0:00:15.7]}
30... a4 {[%clk 0:00:02.7]} 31. f5 {[%clk 0:00:15.3]} 31... axb3 {[%clk
0:00:03.2]} 32. fxe6 {[%clk 0:00:13.5]} 32... bxa2+ {[%clk 0:00:04.1]} 33. Kxa2
{[%clk 0:00:13.2]} 33... fxe6 {[%clk 0:00:05]} 34. Bd5 {[%clk 0:00:11.9]} 34...
Rb5 {[%clk 0:00:01.6]} 35. Rdxe6+ {[%clk 0:00:11.6]} 35... Kf5 {[%clk 0:00:02]}
36. Bb3 {[%clk 0:00:12.1]} 1-0

[Event "Late-Titled-Tuesday-Blitz-October-24-2023"]
[Site "Chess.com"]
[Date "2023.10.24"]
[Round "10"]
[White "nochewycandy"]
[Black "Apocalyps999"]
[Result "1/2-1/2"]
[WhiteElo "2782"]
[BlackElo "2387"]
[TimeControl "180+1"]
[EndTime "15:56:02 PDT"]
[Termination "Game drawn by agreement"]

1. e4 {[%clk 0:03:00.9]} 1... e5 {[%clk 0:02:58.8]} 2. Nf3 {[%clk 0:03:01]} 2...
Nc6 {[%clk 0:02:59.2]} 3. Bb5 {[%clk 0:03:01.2]} 3... a6 {[%clk 0:02:59.6]} 4.
Ba4 {[%clk 0:03:01.9]} 4... Nf6 {[%clk 0:03:00]} 5. O-O {[%clk 0:03:02.4]} 5...
Be7 {[%clk 0:03:00.6]} 6. d3 {[%clk 0:03:01.7]} 6... b5 {[%clk 0:03:00.6]} 7.
Bb3 {[%clk 0:03:02.5]} 7... O-O {[%clk 0:03:01.1]} 8. a4 {[%clk 0:03:03.2]} 8...
b4 {[%clk 0:03:01.3]} 9. a5 {[%clk 0:03:00.7]} 9... d5 {[%clk 0:03:01.3]} 10.
exd5 {[%clk 0:02:56.4]} 10... Nxd5 {[%clk 0:03:02.2]} 11. Nbd2 {[%clk
0:02:53.3]} 11... Nf6 {[%clk 0:02:55.3]} 12. h3 {[%clk 0:02:47.8]} 12... Bf5
{[%clk 0:02:51.8]} 13. Qe2 {[%clk 0:02:39.8]} 13... Bd6 {[%clk 0:02:42.9]} 14.
Ne4 {[%clk 0:02:35.3]} 14... Be7 {[%clk 0:02:39.2]} 15. Bg5 {[%clk 0:02:10.7]}
15... h6 {[%clk 0:02:22.7]} 16. Bxf6 {[%clk 0:02:10.8]} 16... Bxf6 {[%clk
0:02:23.5]} 17. Rfe1 {[%clk 0:02:06.4]} 17... Bg6 {[%clk 0:02:16.5]} 18. Qe3
{[%clk 0:01:57.4]} 18... Be7 {[%clk 0:01:54.8]} 19. Ned2 {[%clk 0:01:34.3]}
19... Bd6 {[%clk 0:01:46.6]} 20. Nc4 {[%clk 0:01:30.8]} 20... Qf6 {[%clk
0:01:31.7]} 21. Nh2 {[%clk 0:01:19.2]} 21... Nd4 {[%clk 0:01:18]} 22. Ng4 {[%clk
0:01:19.2]} 22... Qd8 {[%clk 0:01:08.2]} 23. Ncxe5 {[%clk 0:01:07.4]} 23... Nxb3
{[%clk 0:01:06.1]} 24. cxb3 {[%clk 0:01:06.3]} 24... Bf5 {[%clk 0:00:57.6]} 25.
d4 {[%clk 0:01:02.3]} 25... Re8 {[%clk 0:00:52.5]} 26. Qf3 {[%clk 0:00:58.3]}
26... Be6 {[%clk 0:00:46.9]} 27. d5 {[%clk 0:00:50.4]} 27... Bxg4 {[%clk
0:00:28.1]} 28. Qxf7+ {[%clk 0:00:43.9]} 28... Kh8 {[%clk 0:00:24.9]} 29. Ng6+
{[%clk 0:00:24.5]} 29... Kh7 {[%clk 0:00:23.2]} 30. hxg4 {[%clk 0:00:25.4]}
30... Rxe1+ {[%clk 0:00:19.7]} 31. Rxe1 {[%clk 0:00:26.3]} 31... Qg5 {[%clk
0:00:19.9]} 32. Ne7 {[%clk 0:00:19.3]} 32... Qxg4 {[%clk 0:00:20]} 33. Qf5+
{[%clk 0:00:17.8]} 33... Qxf5 {[%clk 0:00:19.4]} 34. Nxf5 {[%clk 0:00:18.7]}
34... Rb8 {[%clk 0:00:19.3]} 35. Re4 {[%clk 0:00:18.2]} 35... Rb5 {[%clk
0:00:19.2]} 36. Nxd6 {[%clk 0:00:18.2]} 36... cxd6 {[%clk 0:00:20.1]} 37. g3
{[%clk 0:00:15.2]} 37... Rxd5 {[%clk 0:00:17.8]} 38. Rxb4 {[%clk 0:00:15.5]}
38... Rxa5 {[%clk 0:00:18.3]} 39. Rb6 {[%clk 0:00:15.9]} 39... d5 {[%clk
0:00:18.6]} 40. Rd6 {[%clk 0:00:16.3]} 40... Rb5 {[%clk 0:00:18.9]} 41. Rxa6
{[%clk 0:00:15.7]} 41... Rxb3 {[%clk 0:00:19]} 42. Rd6 {[%clk 0:00:16.4]} 42...
Rb5 {[%clk 0:00:19.3]} 43. b4 {[%clk 0:00:14.7]} 43... Kg8 {[%clk 0:00:19.8]}
44. Kg2 {[%clk 0:00:12.5]} 44... Kf7 {[%clk 0:00:20]} 45. Kf3 {[%clk 0:00:12.2]}
45... Ke7 {[%clk 0:00:20.1]} 46. Rg6 {[%clk 0:00:11.7]} 46... Kf7 {[%clk
0:00:18.7]} 47. Rd6 {[%clk 0:00:12.3]} 1/2-1/2